Cogmind - Beta 12 @@@ ROGUE MODE // 2023.10.06 @ 17:28:00 Player: AlexBrymm Result: Destroyed by KN-XJX(i) with Flamer Performance ------------- Evolutions (3) 1500 Regions Visited (8) 1600 Robots Destroyed (79) 395 Value Destroyed (2490) 2490 Prototype IDs (10) 200 Alien Tech Used (0) 0 Bonus (35) 35 TOTAL SCORE: 6220 Bonus ------- Follower Combat Kills 35 Cogmind --------- Core Integrity 0/700 Matter 189/300 Energy 99/100 System Corruption 8% Temperature Cool (20) Movement Core (50) Location -7/Lower Caves Parts ------- > --- POWER (2) -------- (None) > --- PROPULSION (4) --- (None) > --- UTILITY (5) ------ Melee Analysis Suite Improved Target Analyzer Hacking Suite System Shield > --- WEAPON (2) ------- (None) > --- INVENTORY (5) ---- Improved Heat Sink Improved Target Analyzer Improved Powered Armor Improved Shield Generator Beamcaster Peak State ------------ > --- POWER ------------ Nuclear Core Light Angular Momentum Engine > --- PROPULSION ------- Carbon-fiber Leg Improved Carbon-fiber Leg Improved Carbon-fiber Leg Improved Titanium Leg > --- UTILITY ---------- Large Storage Unit Improved Sensor Array Improved Signal Interpreter Medium Reactive Plating Hacking Suite > --- WEAPON ----------- Beamcaster Precision Assault Rifle > --- INVENTORY -------- Nuclear Core Light Angular Momentum Engine Carbon-fiber Leg Carbon-fiber Leg Improved Heat Sink Improved Heat Sink Medium Storage Unit Melee Analysis Suite Melee Analysis Suite Target Analyzer Medium Reactive Plating Medium Reactive Plating Hardlight Generator Lightning Gun Rocket Launcher [Rating: 51] Favorites ----------- Power Nuclear Core Engine Light Ion Engine Power Core Nuclear Core Propulsion Carbon-fiber Leg Leg Carbon-fiber Leg Hover Unit Gravmag System Utility Large Storage Unit Device Heat Sink Storage Large Storage Unit Processor Melee Analysis Suite Hackware Hacking Suite Protection Improved Medium Armor Plating Weapon Beam Rifle Energy Gun Beam Rifle Ballistic Gun Assault Rifle Ballistic Cannon Improved Light Cannon Launcher Rocket Launcher Special Weapon Mining Laser Slashing Weapon Axe Build | -11 -10 -10 -9 -9 -8 -7 -7 -7 ------- Run | Jun Mat Min Mat Min Mat Fac Low Low Slots Evolved 6 | . . . 2 . 2 2 . . Power 1 | . . . . . 1 . . . Propulsion 2 | . . . 1 . 1 . . . Utility 3 | . . . 1 . . 2 . . Weapon . | . . . . . . . . . Parts Attached 119 | 7 6 . 28 2 5 48 19 4 Power 16 | 1 . . 4 . 2 8 1 . Engine 8 | 1 . . 3 . . 4 . . Core 8 | . . . 1 . 2 4 1 . Reactor . | . . . . . . . . . Propulsion 37 | 2 2 . 10 . 1 12 9 1 Treads . | . . . . . . . . . Leg 33 | 2 2 . 7 . 1 12 8 1 Wheel . | . . . . . . . . . Hover 4 | . . . 3 . . . 1 . Flight . | . . . . . . . . . Utility 33 | 1 3 . 8 . 1 14 3 3 Device 12 | . 2 . 4 . 1 5 . . Storage 6 | 1 1 . 3 . . . . 1 Processor 6 | . . . . . . 4 1 1 Hackware 2 | . . . . . . 1 . 1 Protection 7 | . . . 1 . . 4 2 . Artifact . | . . . . . . . . . Weapon 33 | 3 1 . 6 2 1 14 6 . Energy Gun 15 | 1 1 . 4 1 . 6 2 . Energy Cannon . | . . . . . . . . . Ballistic Gun 7 | 2 . . 1 . . 2 2 . Ballistic Cannon 4 | . . . . . 1 3 . . Launcher 4 | . . . . 1 . 2 1 . Special Weapon 1 | . . . 1 . . . . . Impact Weapon . | . . . . . . . . . Slashing Weapon 2 | . . . . . . 1 1 . Piercing Weapon . | . . . . . . . . . Special Melee Weapon . | . . . . . . . . . Unidentified Prototypes 4 | . . . . . . 3 1 . Corrupted Parts 1 | . . . . . . 1 . . System Corruption 2 | . . . . . . 2 . . Parts Lost 37 | . 1 . 11 1 . 10 13 1 Power 9 | . . . 3 . . 3 3 . Propulsion 14 | . . . 4 . . 3 6 1 Utility 4 | . . . . 1 . 1 2 . Weapon 10 | . 1 . 4 . . 3 2 . Highest Loss Streak 7 | . 1 . 6 1 . 7 6 1 To Critical Strikes 1 | . 1 . . . . . . . Average Slot Usage (%) 90 | . 86 100 91 95 98 96 80 47 Engine 4 | . 14 14 8 11 . 3 . . Core 6 | . . . . . 17 10 8 . Leg 27 | . 28 28 28 33 35 29 22 1 Device 7 | . 8 14 15 11 17 4 . . Storage 9 | . 14 14 12 11 9 7 7 3 Processor 7 | . . . . . . 11 15 17 Hackware 3 | . . . . . . 5 7 11 Protection 4 | . . . 3 6 . 6 5 . Energy Gun 9 | . 7 14 16 16 13 8 . . Ballistic Gun 2 | . 14 14 2 . . . 2 8 Slashing Weapon 2 | . . . . . . 4 5 . Naked Turns . | . . . . . . . . . Heaviest Build 66 | 12 17 17 37 38 43 66 47 28 Greatest Support 71 | 20 20 20 45 45 60 71 65 20 Greatest Overweight (x) 5 | . . . 5 . . 1 3 3 Average Overweight (x) . | . . . . . . . . . Largest Inventory Capacity 15 | 8 10 10 15 15 15 15 15 15 Average Capacity 13 | 6 8 10 13 15 15 15 15 9 Most Carried 15 | 2 10 10 15 15 15 15 15 12 Average Carried 11 | 1 4 10 10 15 14 13 14 7 Final Capacity 15 | 8 10 10 15 15 15 15 15 5 Final Carried 15 | 2 10 10 15 15 15 15 12 5 Class Distribution -------------------- 84% | Mutant 13% | Scavenger-Mutant Dominant Class ---------------- Mutant | -10/Materials Mutant | -10/Mines Mutant | -9/Materials Mutant | -9/Mines Mutant | -8/Materials Mutant | -7/Factory Mutant | -7/Lower Caves Hacker-Mutant | -7/Lower Caves Resources | -11 -10 -10 -9 -9 -8 -7 -7 -7 ----------- Run | Jun Mat Min Mat Min Mat Fac Low Low Matter Collected 1810 | 163 168 . 405 46 40 648 256 84 Remotely . | . . . . . . . . . Salvage Created 2937 | . 328 . 779 87 51 969 700 23 Parts 165 | . 22 . 48 6 . 67 21 1 Haulers Intercepted 2 | . . . . . . 1 1 . Recyclers Shooed 1 | . . . 1 . . . . . Parts Field Recycled . | . . . . . . . . . Retrieved Matter . | . . . . . . . . . Parts Self-Destructed 19 | . . . . . . . 19 . Prevented . | . . . . . . . . . Kills | -11 -10 -10 -9 -9 -8 -7 -7 -7 ------- Run | Jun Mat Min Mat Min Mat Fac Low Low Combat Hostiles Destroyed 61 | . 7 . 20 4 1 15 14 . Melee 17 | . . . . . . 8 9 . Guns 29 | . 7 . 18 2 . 1 1 . Cannons 5 | . . . 1 . . 4 . . AOE 8 | . . . . 2 . 2 4 . Classes Destroyed 13 | . 3 . 4 . . 6 . . Worker 8 | . . . . . . 8 . . Builder 2 | . . . 1 . . 1 . . Tunneler 2 | . . . 1 . . 1 . . Hauler 2 | . . . . . . 1 1 . Recycler 2 | . . . 1 . . 1 . . Watcher 2 | . 2 . . . . . . . Swarmer 12 | . 1 . 7 3 . . 1 . Grunt 31 | . 6 . 7 1 . 8 9 . Brawler 1 | . . . . . . 1 . . Duelist 3 | . . . . . . 1 2 . Sentry 8 | . . . 6 . 1 . 1 . Hunter 4 | . . . . . . 3 1 . Programmer 2 | . . . . . . 2 . . Decomposer 1 | . . . . . . . . 1 Best Kill Streak 7 | . 7 . 6 3 1 5 5 . Combat Bots Only 5 | . 5 . 4 3 1 3 5 . Max Kills in Single Turn 3 | . 1 . 1 3 1 3 2 1 Gunslinging . | . . . . . . . . . Exploded 2 | . . . . 2 . 2 2 . Melee 1 | . . . . . . 1 1 . Uniques/NPCs Destroyed . | . . . . . . . . . Combat | -11 -10 -10 -9 -9 -8 -7 -7 -7 -------- Run | Jun Mat Min Mat Min Mat Fac Low Low Damage Taken 5513 | . 299 . 1462 90 133 1626 1707 196 Core 1083 | . 37 . 302 27 14 220 386 97 Absorbed by Shields . | . . . . . . . . . Core Remaining (%) 74 | 100 . 85 . 17 97 . . . Volleys Fired 207 | . 26 . 89 7 20 43 20 2 Largest 2 | . 2 . 2 2 2 2 2 2 Hottest 131 | . 60 . 120 112 112 131 130 56 Shots Fired 338 | . 50 . 136 14 25 80 29 4 Gun 277 | . 50 . 125 13 9 52 24 4 Cannon 43 | . . . . . 16 27 . . Launcher 7 | . . . . 1 . 1 5 . Special 11 | . . . 11 . . . . . Kinetic 154 | . 26 . 59 . 16 27 22 4 Thermal 145 | . 5 . 77 13 9 40 1 . Explosive 7 | . . . . 1 . 1 5 . Electromagnetic 32 | . 19 . . . . 12 1 . Robot Hit Streak 24 | . 9 . 24 4 8 8 12 1 Robot Miss Streak 5 | . 3 . 4 2 . 3 5 2 Penetration Max . | . . . . . . . . . Secondary Targets 2 | . 1 . . . . . 1 . Max Gunslinging Chain 1 | . 1 . . . . . 1 . Shots Hit Robots 267 | . 33 . 100 8 7 71 47 1 Core Hits 122 | . 16 . 41 6 1 36 21 1 Critical Kills . | . . . . . . . . . Critical Parts Destroyed 2 | . . . 1 . . . 1 . Critical Strikes 21 | . . . 2 1 2 11 5 . Burn 7 | . . . 1 1 2 3 . . Destroy 2 | . . . 1 . . . 1 . Corrupt 1 | . . . . . . 1 . . Sever 11 | . . . . . . 7 4 . Melee Attacks 66 | . . . . . . 35 31 . Impact . | . . . . . . . . . Slashing 66 | . . . . . . 35 31 . Piercing . | . . . . . . . . . Sneak Attacks 11 | . . . . . . 10 1 . Combat Hostiles . | . . . . . . . . . Follow-up Attacks . | . . . . . . . . . Damage Inflicted 6592 | . 492 . 1239 242 101 2610 1885 23 Guns 2576 | . 450 . 1118 130 101 384 370 23 Cannons 512 | . . . . . . 512 . . Explosions 943 | . 42 . . 112 . 191 598 . Melee 2440 | . . . . . . 1523 917 . Ramming 1 | . . . 1 . . . . . Kinetic 1493 | . 209 . 422 . . 512 327 23 Thermal 1447 | . 65 . 816 130 101 313 22 . Explosive 901 | . . . . 112 . 191 598 . Electromagnetic 310 | . 218 . . . . 71 21 . Impact . | . . . . . . . . . Slashing 2440 | . . . . . . 1523 917 . Piercing . | . . . . . . . . . Highest Corruption 8 | . . . . . . 8 8 8 Average Corruption 6 | . . . . . . 5 8 8 Corruption Purged . | . . . . . . . . . Corruption Blocked . | . . . . . . . . . Effects 52 | . . . . . . 21 28 3 Message Errors 12 | . . . . . . 7 5 . Matter Fused 9 | . . . . . . 3 6 . Heat Flow Errors 9 | . . . . . . 1 8 . Energy Discharges 4 | . . . . . . 3 1 . Parts Rejected 4 | . . . . . . . 3 1 Data Loss (minor) 7 | . . . . . . 2 3 2 Data Loss (major) 1 | . . . . . . 1 . . Misfires 3 | . . . . . . 3 . . Alerts 2 | . . . . . . 1 1 . Weapon Failures 1 | . . . . . . . 1 . Overload Shots . | . . . . . . . . . Overflow Damage 295 | . 1 . 14 . . 245 35 . Projectiles 14 | . . . 14 . . . . . Explosions 34 | . 1 . . . . . 33 . Melee 247 | . . . . . . 245 2 . Knockbacks 7 | . . . . . . 7 . . Impact . | . . . . . . . . . Kinetic 7 | . . . . . . 7 . . Secondary . | . . . . . . . . . Self-Inflicted Damage . | . . . . . . . . . Shots . | . . . . . . . . . Rammed . | . . . . . . . . . Targets Rammed 1 | . . . 1 . . . . . Kicked 1 | . . . 1 . . . . . Crushed . | . . . . . . . . . Highest Temperature 387 | . 39 . 348 156 147 387 276 15 Average Temperature 97 | . 14 . 81 86 61 137 92 15 Received Heat Transfer 2391 | . 93 . 567 45 63 756 711 156 Effects 1 | . . . . . . 1 . . Energy Bleed 1 | . . . . . . 1 . . Siege Activations . | . . . . . . . . . Robots Corrupted . | . . . . . . . . . Combat Hostiles . | . . . . . . . . . Parts Fried 1 | . 1 . . . . . . . Impact Corruptions . | . . . . . . . . . Robots Melted 2 | . . . 1 . 1 . . . Combat Hostiles 2 | . . . 1 . 1 . . . Parts Melted 16 | . . . 11 1 4 . . . Heat Transferred 3810 | . 100 . 2045 407 407 814 37 . Parts Sabotaged . | . . . . . . . . . Parts Stolen . | . . . . . . . . . Parts Stripped . | . . . . . . . . . Power Chain Reactions 1 | . 1 . . . . . . . Missiles Intercepted . | . . . . . . . . . Alert | -11 -10 -10 -9 -9 -8 -7 -7 -7 ------- Run | Jun Mat Min Mat Min Mat Fac Low Low Peak Influence 285 | . 216 84 285 182 132 197 . . Initial 88 | . . 84 32 88 70 . . . Average 105 | . 134 84 143 163 104 73 . . Maximum Alert Level 1 | . 1 . 1 . . . . . Low Security (%) 92 | 100 91 100 76 100 100 100 . . Level 1 7 | . 8 . 23 . . . . . Level 2 . | . . . . . . . . . Level 3 . | . . . . . . . . . Level 4 . | . . . . . . . . . Level 5 . | . . . . . . . . . High Security . | . . . . . . . . . Max Security . | . . . . . . . . . Squads Dispatched 5 | . 1 . 1 . . 3 . . Investigation 2 | . 1 . . . . 1 . . Extermination 2 | . . . . . . 2 . . Reinforcement 1 | . . . 1 . . . . . Assault . | . . . . . . . . . Garrison . | . . . . . . . . . Intercept . | . . . . . . . . . Searches Triggered . | . . . . . . . . . Construction Impeded . | . . . . . . . . . Haulers Reinforced . | . . . . . . . . . Active Scanning Responses . | . . . . . . . . . Cargo Convoy Interrupts . | . . . . . . . . . Stealth | -11 -10 -10 -9 -9 -8 -7 -7 -7 --------- Run | Jun Mat Min Mat Min Mat Fac Low Low Distress Signals 5 | . 3 . 1 . . 1 . . Communications Jammed . | . . . . . . . . . Distress Signals . | . . . . . . . . . Times Spotted 110 | . 14 . 35 5 1 28 22 5 Peak Tracking Total 6 | . 5 . 6 3 1 6 5 5 Tactical Retreats 12 | . 1 . 1 1 . 4 5 . Traps | -11 -10 -10 -9 -9 -8 -7 -7 -7 ------- Run | Jun Mat Min Mat Min Mat Fac Low Low Traps Triggered 4 | . 1 . . . . 3 . . Indirectly . | . . . . . . . . . Trap Hack Attempts . | . . . . . . . . . Triggered . | . . . . . . . . . Disarmed . | . . . . . . . . . Reprogrammed . | . . . . . . . . . Reused . | . . . . . . . . . Traps Extracted . | . . . . . . . . . Installed . | . . . . . . . . . Triggered . | . . . . . . . . . Machines | -11 -10 -10 -9 -9 -8 -7 -7 -7 ---------- Run | Jun Mat Min Mat Min Mat Fac Low Low Machines Disabled 3 | . . . . . . 3 . . Max in Single Turn 1 | . . . . . . 1 . . Machines Repaired . | . . . . . . . . . Machines Sabotaged . | . . . . . . . . . Overloaded Fab Kills . | . . . . . . . . . Hacking | -11 -10 -10 -9 -9 -8 -7 -7 -7 --------- Run | Jun Mat Min Mat Min Mat Fac Low Low Machines Accessed 20 | . 2 . 3 . 4 9 2 . Terminals 17 | . 2 . 3 . 4 8 . . Fabricators . | . . . . . . . . . Repair Stations . | . . . . . . . . . Recycling Units . | . . . . . . . . . Scanalyzers . | . . . . . . . . . Garrison Access 1 | . . . . . . 1 . . Total Hacks 48 | . 8 . 8 . 10 20 2 . Successful 18 | . 3 . 2 . 4 7 2 . Failed 29 | . 5 . 5 . 6 13 . . Catastrophic 6 | . 2 . . . 1 3 . . Database Lockouts 1 | . . . 1 . . . . . Manual 25 | . 3 . 5 . 6 11 . . Terminals 44 | . 8 . 8 . 10 18 . . Fabricators . | . . . . . . . . . Repair Stations . | . . . . . . . . . Recycling Units . | . . . . . . . . . Scanalyzers . | . . . . . . . . . Garrison Access 2 | . . . . . . 2 . . Terminal Hacks 15 | . 3 . 2 . 3 5 2 . Record 1 | . . . . . . 1 . . Robot Analysis 1 | . . . . . 1 . . . Prototype ID Bank 3 | . 2 . 1 . . . . . Open Door 2 | . . . . . . . 2 . Open DSF 1 | . . . . . . 1 . . Level Access Points 2 | . . . . . 1 1 . . Branch Access Points 2 | . 1 . . . 1 . . . Terminal Index 1 | . . . . . . 1 . . Unreport Threat 1 | . . . . . . 1 . . Locate Traps 1 | . . . 1 . . . . . Fabricator Hacks . | . . . . . . . . . Repair Station Hacks . | . . . . . . . . . Recycling Unit Hacks . | . . . . . . . . . Scanalyzer . | . . . . . . . . . Garrison Access Hacks . | . . . . . . . . . Unauthorized Hacks 3 | . . . . . 1 2 . . Terminals 3 | . . . . . 1 2 . . Botnet 3 | . . . . . 1 2 . . Fabricators . | . . . . . . . . . Repair Stations . | . . . . . . . . . Recycling Units . | . . . . . . . . . Scanalyzers . | . . . . . . . . . Garrison Access . | . . . . . . . . . Data Cores Recovered . | . . . . . . . . . Used . | . . . . . . . . . Hacking Detections 15 | . 2 . 2 . 3 8 . . Full Trace Events 1 | . . . . . . 1 . . Feedback Events . | . . . . . . . . . Feedback Blocked . | . . . . . . . . . Robot Schematics Acquired . | . . . . . . . . . Robots Built . | . . . . . . . . . Authchips . | . . . . . . . . . Time . | . . . . . . . . . Total Robot Build Rating . | . . . . . . . . . Part Schematics Acquired . | . . . . . . . . . Parts Built . | . . . . . . . . . Authchips . | . . . . . . . . . Time . | . . . . . . . . . Total Part Build Rating . | . . . . . . . . . Parts Repaired . | . . . . . . . . . Time . | . . . . . . . . . Parts Recycled . | . . . . . . . . . Recycled Matter . | . . . . . . . . . Retrieved Matter . | . . . . . . . . . Retrieved Components . | . . . . . . . . . Parts Scanalyzed . | . . . . . . . . . Part Schematics Acquired . | . . . . . . . . . Parts Damaged . | . . . . . . . . . Bothacking | -11 -10 -10 -9 -9 -8 -7 -7 -7 ------------ Run | Jun Mat Min Mat Min Mat Fac Low Low Used RIF Installer . | . . . . . . . . . Robots Hacked . | . . . . . . . . . Non-combat . | . . . . . . . . . Combat . | . . . . . . . . . Robot Hacks Applied . | . . . . . . . . . Relay Couplers Released . | . . . . . . . . . Fabnet Peak Effective % . | . . . . . . . . . Robots Rewired 1 | . . . . . . 1 . . Allies Hacked . | . . . . . . . . . Hacks Repelled . | . . . . . . . . . Allies | -11 -10 -10 -9 -9 -8 -7 -7 -7 -------- Run | Jun Mat Min Mat Min Mat Fac Low Low Total Allies 3 | . . 1 . 1 . 1 . . Largest Group 1 | . . 1 1 1 . 1 . . Highest-Rated Group 31 | . . 31 31 31 . 16 . . Highest-Rated Ally 31 | . . 31 31 31 . 16 . . Total Orders . | . . . . . . . . . Ally Attacks 24 | . . . 3 2 . 19 . . Total Damage 236 | . . . 44 41 . 151 . . Kills 1 | . . . . . . 1 . . Allies Corrupted . | . . . . . . . . . Allies Melted . | . . . . . . . . . Intel | -11 -10 -10 -9 -9 -8 -7 -7 -7 ------- Run | Jun Mat Min Mat Min Mat Fac Low Low Robot Analysis Total 1 | . . . . . 1 . . . Derelict Logs Recovered 3 | . . . . 1 . . 2 . Drone Launches . | . . . . . . . . . Drone Recoveries . | . . . . . . . . . Exploration | -11 -10 -10 -9 -9 -8 -7 -7 -7 ------------- Run | Jun Mat Min Mat Min Mat Fac Low Low Turns Passed 4809 | 66 335 134 1155 104 420 1507 911 177 Spaces Moved 2891 | 47 203 110 605 62 251 898 565 150 Core 66 | 2 . . . . . . . 64 Treads . | . . . . . . . . . Legs 2669 | 45 203 110 564 62 251 898 514 22 Wheels . | . . . . . . . . . Hover 156 | . . . 41 . . . 51 64 Flight . | . . . . . . . . . Fastest Speed 50 | 50 120 120 52 120 120 120 120 50 Average Speed 125 | 117 120 120 125 120 120 127 132 101 Slowest Speed 360 | 120 120 120 360 120 120 195 240 240 Overloaded Moves . | . . . . . . . . . Propulsion Burnouts . | . . . . . . . . . Robots Hopped . | . . . . . . . . . Cave-ins Triggered . | . . . . . . . . . Exploration Rate (%) 31 | 4 39 39 44 18 21 21 70 23 Regions Visited 8 Branch Regions 4 Pre-discovered Areas 1 | . . . . 1 . . . . Known Exits Taken 2 | . 1 . . . 1 . . . Unknown Exits Taken 6 | 1 . 1 1 1 . 1 1 . Scrap Searched 4 | . . . . . . . 2 2 Spaces Dug 6 | . . . . . 5 1 . . Terrain Destroyed 70 | . 5 . 3 10 5 8 39 . Melee 1 | . . . . . . 1 . . Projectile 11 | . . . 3 . 5 3 . . AOE 58 | . 5 . . 10 . 4 39 . Terrain Rammed . | . . . . . . . . . Walls Destroyed . | . . . . . . . . . Machines Disabled . | . . . . . . . . . Actions | -11 -10 -10 -9 -9 -8 -7 -7 -7 --------- Run | Jun Mat Min Mat Min Mat Fac Low Low Total 3640 | 55 243 112 855 79 347 1119 658 172 Wait 199 | . 2 1 90 5 57 28 6 10 Move 2883 | 46 202 109 604 61 250 897 564 150 Hop . | . . . . . . . . . Pick Up 68 | 2 6 1 22 2 7 20 8 . Fast Attach 47 | 5 1 . 12 . 3 19 4 3 Attach 37 | 1 2 . 9 . 1 15 8 1 Detach 6 | . 1 . 2 . . 2 1 . Swap 36 | 1 3 . 7 2 1 14 8 . Drop 73 | . . 1 19 2 8 30 8 5 Fire 207 | . 26 . 89 7 20 43 20 2 Melee 66 | . . . . . . 35 31 . Ram . | . . . . . . . . . Kick 1 | . . . 1 . . . . . Crush . | . . . . . . . . . Escape Stasis . | . . . . . . . . . Rewire 17 | . . . . . . 16 . 1 Trap . | . . . . . . . . . Miscellaneous . | . . . . . . . . . Route ------- -11/Junkyard -10/Materials (discovered 2 exits: *Mat / *Min) -10/Mines -9/Materials -9/Mines -8/Materials (discovered 3 exits: *Fac x3) -7/Factory (discovered 5 exits: Fac x4 / *Low) -7/Lower Caves -7/Lower Caves History --------- Turn | Location | Event 24 | -11/Junkyard | Discovered new exit (range 15) 67 | -11/Junkyard | Entered Materials 218 | -10/Materials | Identified exit to Mines 225 | -10/Materials | Discovered new exit (range 16) 315 | -10/Materials | Build established: Mutant 402 | -10/Materials | Entered Mines 503 | -10/Mines | Discovered new exit (range 9) 505 | -10/Mines | Received a Mining Laser from a helpful Derelict 536 | -10/Mines | Entered Materials 536 | -9/Materials | Accompanied by 1 ally 536 | -9/Materials | Evolved 2 slots: Propulsion x1, Utility x1 819 | -9/Materials | Core integrity fell below 50% 864 | -9/Materials | Lost 6 parts (1p3n2w) 1038 | -9/Materials | Discovered new exit (range 15) 1181 | -9/Materials | Central database locked down 1691 | -9/Materials | Entered Mines 1694 | -9/Mines | Escorted by a lone wolf Derelict 1706 | -9/Mines | Met a Derelict bent on vengeance 1714 | -9/Mines | Learned location of Storage (-7) 1726 | -9/Mines | Learned Materials interactive machine intel 1763 | -9/Mines | Core integrity fell below 20% 1779 | -9/Mines | Discovered new exit (range 11) 1795 | -9/Mines | Entered Materials 1795 | -8/Materials | Evolved 2 slots: Power x1, Propulsion x1 1796 | -8/Materials | Loaded intel: 19 interactive machine locations 1892 | -8/Materials | Identified exit to Factory 2215 | -8/Materials | Entered Factory 2215 | -7/Factory | Evolved 2 slots: Utility x2 2485 | -7/Factory | Identified exit to Factory 2882 | -7/Factory | Lost 7 parts (2p1n1u3w) 3310 | -7/Factory | Discovered new exit (range 5) 3312 | -7/Factory | Found Prototype Launcher 3312 | -7/Factory | Identified Rocket Array 3722 | -7/Factory | Entered Lower Caves 3794 | -7/Lower Caves | Found Imp. Powered Armor 3858 | -7/Lower Caves | Spotted B-75 Beast 4042 | -7/Lower Caves | Learned Factory stockpile data 4147 | -7/Lower Caves | Attracted the attention of an 0b10 checkpoint 4195 | -7/Lower Caves | Lost 3 parts (1p2n) 4456 | -7/Lower Caves | Core integrity fell below 50% 4486 | -7/Lower Caves | Core integrity fell below 20% 4499 | -7/Lower Caves | Lost 6 parts (1p3n1u1w) 4611 | -7/Lower Caves | Discovered new exit (range 5) 4633 | -7/Lower Caves | Entered another Lower Caves area 4770 | -7/Lower Caves | Ambushed by wild Derelicts 4810 | -7/Lower Caves | Destroyed by KN-XJX(i) with Flamer Last Messages --------------- 04750_ Found Flamer. 04750_ Found 37 Matter. 04751_ Acquired 37 matter. 04751_ Acquired Mak. Leg. 04754_ Discarded Melee Analysis Suite. 04754_ Acquired Sml. Storage Unit. 04770_ Q5-N2O(g): "Give us 100,000 units of matter and we'll let you pass... I didn't think so. We'll just take whatever you've got on you. Literally." 04772_ Critical hit (Burn: +37). 04785_ System corrupted: Mak. Leg rejected. 04785_ Dropped Sml. Storage Unit. 04796_ Attempting to rewire B-48 Gladiator. 04796_ B-48 Gladiator is broken beyond repair. 04797_ Searching scrap... 04797_ Found Dynamic Insulation System. 04797_ Found Unknown Hackware. 04797_ Found Transmission Jammer. 04797_ Found 24 Matter. 04798_ Acquired 24 matter. Map ----- +----------------------------------------------------+ | ?????????????????????????????????????????????????? | | ?????????????????????????????????????????????????? | | ?????????????????????????????????????????????????? | | ?????????????????????????????????????????????????? | | ?????????????????????????????????????????????????? | | ?????????????????????????????????????????????????? | | ?????????????????????????????????????????????????? | | ?????????????????????????????????????????????????? | | ?????????????????????????????????????????????????? | | ?????????????????????????????????????????????????? | | ?????????????????????????????????????????????????? | | ?????????????????????????????????????????????????? | | ?????????????????????????????????????????????????? | | ?????????????????????????????????????????????????? | | ???????????????????????????????????????????????### | | ??????????????????????????????????????????????## | | ??????????????????????????????????????????????# | | ???????????????????????????????????????????????# | | ?????????????????????????????????????????????????? | | ?????????????????????????????????????????????????? | | ?????????????????????????????????????????????????? | | ??????????????????????????####????????????###???## | | ?????????????????????????## ####????????## ???# | | ????????????????????###### #????????# ??# | | ???????????????????## $ #????????# ??# | | ??????????????????## @ #???????## ### | | ??????????????????# g ! ii ##???????# | | ??????????????????#$ b# * #######???# | | ??????????????????# !!! ##i #### ##???# | | ??????????????????##! ## ### ########## ## | | ???????????????????####### ## ###???#### | | ?????????????????????????# g ####### | | ?????????????????????????## ### = | | ??????????????????????????# ##?## ! | | ?????????????????????????# #???# ########### | | ?????????????????????????# #???# #?????????## | | ?????????????????????????# ???# #??????????# | | ?????????????????????????# ## ?? #??????????# | | ?????????????????????????###### ? ##??????????? | | ??????????????????????????????### #????????????? | | ?????????????????????????????????# ?????????????? | | ?????????????????????????????????? #????????????? | | ?????????????????????????????????? ????????????? | | ?????????????????????????????????? ????????????? | | ???????????????????????????????????? ????????????? | | ?????????????????????????????????????????????????? | | ?????????????????????????????????????????????????? | | ?????????????????????????????????????????????????? | | ?????????????????????????????????????????????????? | | ?????????????????????????????????????????????????? | +----------------------------------------------------+ Best States ------------- Heat Dissipation 48 Energy Generation 28 Energy Capacity 380 Matter Stores 300 Matter Capacity 300 Sight Range 16 Robot Scan Range 15 Terrain Scan Range 16 Terrain Scan Density 85 Armor Coverage 400 Resistance: KI 30 Evasion (%) 55 Melee Accuracy 5 Target Analysis 6 Offensive Hacking 10 Defensive Hacking 10 Item Schematics ----------------- None Robot Schematics ------------------ None Fabricated ------------ Nothing Alien Tech Used ----------------- None Achievements -------------- None Challenges ------------ None Game ------ Seed NeutronLobotomyCoupler Manual? 0 Play Time 00:54:24 Cumulative 45.8 hours Start 2023.10.06 @ 16:11:56 End 2023.10.06 @ 17:28:00 Sessions 1 Manual Loads 0 Difficulty Rogue Special Mode None Game No. 45 Rogue 45 Adventurer 0 Explorer 0 Win Type - Total 1 Types 1/0/0/0/0/0/0/0/0 Lore% 43 Gallery% 48 Achievement% 37 Wizard Run 0 Options --------- ASCII 0 Keyboard 0 Movement Numpad Keybinds 0 Fullscreen 2 Font 24/Smallcaps Map View 76x50 Tactical HUD 1 Map Filters NONE Filters NONE Steam 1 RUN: 528c8e63-348c-4fbb-bd54-7cd0e02120ee